[Event "Titled Tuesday Blitz June 6 Early 2023"]
[White "Martic, Ivan"]
[Black "Quintiliano Pinto, Renato R."]
[WhiteFideId "929301"]
[BlackFideId "2117568"]
[WhiteElo "2346"]
[BlackElo "2459"]
[Result "1/2-1/2"]
[Round "9"]
[TimeControl "180+2"]
[Date "2023.06.06"]
[WhiteClock "0:00:02"]
[BlackClock "0:00:18"]
[Board "39"]

1. e4 {[%clk 0:03:00]}  c5 {[%clk 0:02:58]} 2. Nf3 {[%clk 0:03:01]}  d6 {[%clk 0:02:58]} 3. Bb5+ {[%clk 0:02:59]}  Bd7 {[%clk 0:02:58]} 4. Bxd7+ {[%clk 0:02:59]}  Nxd7 {[%clk 0:02:59]} 5. O-O {[%clk 0:02:54]}  Ngf6 {[%clk 0:02:58]} 6. Re1 {[%clk 0:02:53]}  e6 {[%clk 0:02:56]} 7. d4 {[%clk 0:02:52]}  cxd4 {[%clk 0:02:56]} 8. Nxd4 {[%clk 0:02:53]}  Rc8 {[%clk 0:02:55]} 9. b3 {[%clk 0:02:47]}  a6 {[%clk 0:02:46]} 10. c4 {[%clk 0:02:46]}  Be7 {[%clk 0:02:39]} 11. Bb2 {[%clk 0:02:46]}  O-O {[%clk 0:02:39]} 12. Nc3 {[%clk 0:02:46]}  Qa5 {[%clk 0:02:39]} 13. Rc1 {[%clk 0:02:37]}  Rfe8 {[%clk 0:02:37]} 14. Qd2 {[%clk 0:02:31]}  Bf8 {[%clk 0:02:28]} 15. Rcd1 {[%clk 0:02:27]}  Red8 {[%clk 0:02:10]} 16. h3 {[%clk 0:02:19]}  g6 {[%clk 0:01:57]} 17. Nf3 {[%clk 0:02:10]}  b5 {[%clk 0:01:46]} 18. Nd5 {[%clk 0:01:59]}  Qxd2 {[%clk 0:01:46]} 19. Nxf6+ {[%clk 0:01:59]}  Nxf6 {[%clk 0:01:47]} 20. Rxd2 {[%clk 0:01:58]}  Nd7 {[%clk 0:01:37]} 21. cxb5 {[%clk 0:01:52]}  axb5 {[%clk 0:01:38]} 22. Nh2 {[%clk 0:01:17]}  b4 {[%clk 0:01:23]} 23. Ng4 {[%clk 0:01:15]}  h5 {[%clk 0:01:18]} 24. Ne3 {[%clk 0:01:11]}  Ra8 {[%clk 0:01:11]} 25. Ba1 {[%clk 0:01:05]}  Nc5 {[%clk 0:00:59]} 26. Nc4 {[%clk 0:01:04]}  Nxe4 {[%clk 0:00:39]} 27. Rxe4 {[%clk 0:01:02]}  d5 {[%clk 0:00:40]} 28. Bf6 {[%clk 0:00:55]}  Rdb8 {[%clk 0:00:33]} 29. Be5 {[%clk 0:00:40]}  Rb5 {[%clk 0:00:17]} 30. Nd6 {[%clk 0:00:39]}  Bxd6 {[%clk 0:00:16]} 31. Ree2 {[%clk 0:00:33]}  Bxe5 {[%clk 0:00:16]} 32. Rxe5 {[%clk 0:00:33]}  Rba5 {[%clk 0:00:16]} 33. Ree2 {[%clk 0:00:33]}  Rc8 {[%clk 0:00:16]} 34. f4 {[%clk 0:00:30]}  Rc3 {[%clk 0:00:15]} 35. Kf2 {[%clk 0:00:30]}  h4 {[%clk 0:00:15]} 36. Rc2 {[%clk 0:00:26]}  Rac5 {[%clk 0:00:15]} 37. Rcd2 {[%clk 0:00:26]}  Kg7 {[%clk 0:00:14]} 38. Rd4 {[%clk 0:00:26]}  Rb5 {[%clk 0:00:13]} 39. Ke1 {[%clk 0:00:26]}  Kf6 {[%clk 0:00:14]} 40. Kd2 {[%clk 0:00:26]}  Ke7 {[%clk 0:00:13]} 41. a4 {[%clk 0:00:26]}  Rbc5 {[%clk 0:00:09]} 42. Rxb4 {[%clk 0:00:25]}  Rc2+ {[%clk 0:00:10]} 43. Ke3 {[%clk 0:00:24]}  R5c3+ {[%clk 0:00:10]} 44. Kf2 {[%clk 0:00:24]}  Rxe2+ {[%clk 0:00:11]} 45. Kxe2 {[%clk 0:00:25]}  Rc2+ {[%clk 0:00:12]} 46. Kf3 {[%clk 0:00:25]}  Ra2 {[%clk 0:00:13]} 47. Rb7+ {[%clk 0:00:22]}  Kf6 {[%clk 0:00:13]} 48. Rb5 {[%clk 0:00:22]}  Ra3 {[%clk 0:00:13]} 49. a5 {[%clk 0:00:22]}  Kf5 {[%clk 0:00:12]} 50. Rb7 {[%clk 0:00:20]}  f6 {[%clk 0:00:13]} 51. Rb5 {[%clk 0:00:19]}  g5 {[%clk 0:00:13]} 52. fxg5 {[%clk 0:00:19]}  fxg5 {[%clk 0:00:13]} 53. Ke3 {[%clk 0:00:19]}  Ke5 {[%clk 0:00:14]} 54. Kd3 {[%clk 0:00:19]}  Ra2 {[%clk 0:00:14]} 55. b4 {[%clk 0:00:18]}  Ra3+ {[%clk 0:00:14]} 56. Kc2 {[%clk 0:00:17]}  Kd4 {[%clk 0:00:15]} 57. Kb2 {[%clk 0:00:17]}  Rg3 {[%clk 0:00:14]} 58. a6 {[%clk 0:00:17]}  Rxg2+ {[%clk 0:00:15]} 59. Kb3 {[%clk 0:00:17]}  Rg3+ {[%clk 0:00:16]} 60. Ka4 {[%clk 0:00:17]}  Rg1 {[%clk 0:00:16]} 61. Ra5 {[%clk 0:00:17]}  Ra1+ {[%clk 0:00:15]} 62. Kb5 {[%clk 0:00:18]}  Rc1 {[%clk 0:00:15]} 63. a7 {[%clk 0:00:17]}  Rc8 {[%clk 0:00:16]} 64. a8=Q {[%clk 0:00:18]}  Rxa8 {[%clk 0:00:16]} 65. Rxa8 {[%clk 0:00:19]}  e5 {[%clk 0:00:15]} 66. Rg8 {[%clk 0:00:18]}  e4 {[%clk 0:00:16]} 67. Rxg5 {[%clk 0:00:18]}  e3 {[%clk 0:00:17]} 68. Rg4+ {[%clk 0:00:17]}  Kd3 {[%clk 0:00:18]} 69. Kc5 {[%clk 0:00:13]}  e2 {[%clk 0:00:18]} 70. Rg1 {[%clk 0:00:12]}  d4 {[%clk 0:00:17]} 71. b5 {[%clk 0:00:12]}  Ke3 {[%clk 0:00:18]} 72. b6 {[%clk 0:00:12]}  Kf2 {[%clk 0:00:17]} 73. Ra1 {[%clk 0:00:11]}  d3 {[%clk 0:00:17]} 74. b7 {[%clk 0:00:12]}  d2 {[%clk 0:00:18]} 75. b8=Q {[%clk 0:00:12]}  e1=Q {[%clk 0:00:19]} 76. Qf4+ {[%clk 0:00:12]}  Kg2 {[%clk 0:00:19]} 77. Qg4+ {[%clk 0:00:10]}  Kh2 {[%clk 0:00:19]} 78. Qf4+ {[%clk 0:00:08]}  Kg2 {[%clk 0:00:19]} 79. Qg5+ {[%clk 0:00:06]}  Kh1 {[%clk 0:00:18]} 80. Qd5+ {[%clk 0:00:06]}  Kh2 {[%clk 0:00:18]} 81. Qd6+ {[%clk 0:00:03]}  Kxh3 {[%clk 0:00:19]} 82. Qd3+ {[%clk 0:00:03]}  Kh2 {[%clk 0:00:19]} 83. Qd6+ {[%clk 0:00:03]}  Kg2 {[%clk 0:00:18]} 84. Qg6+ {[%clk 0:00:03]}  Kh1 {[%clk 0:00:18]} 85. Qc6+ {[%clk 0:00:02]}  Kh2 {[%clk 0:00:17]} 86. Qd6+ {[%clk 0:00:03]}  Kg1 {[%clk 0:00:18]} 87. Qg6+ {[%clk 0:00:03]}  Kh2 {[%clk 0:00:18]} 88. Qd6+ {[%clk 0:00:02]} 1/2-1/2


[Site "https://www.chess.com"]

[Event "Titled Tuesday Blitz June 6 Early 2023"]
[White "Orujov2008"]
[Black "Goltsev, Dmitry"]
[BlackFideId "24176710"]
[WhiteElo "2501"]
[BlackElo "2356"]
[Result "0-1"]
[Round "9"]
[TimeControl "180+2"]
[Date "2023.06.06"]
[WhiteClock "0:00:25"]
[BlackClock "0:00:13"]
[Board "45"]

1. e4 {[%clk 0:03:00]}  e6 {[%clk 0:02:59]} 2. d4 {[%clk 0:03:00]}  d5 {[%clk 0:02:59]} 3. Nd2 {[%clk 0:03:01]}  c5 {[%clk 0:03:00]} 4. exd5 {[%clk 0:03:01]}  exd5 {[%clk 0:03:01]} 5. Bb5+ {[%clk 0:03:00]}  Nc6 {[%clk 0:03:00]} 6. Ngf3 {[%clk 0:02:59]}  Nf6 {[%clk 0:03:00]} 7. O-O {[%clk 0:02:57]}  Be7 {[%clk 0:03:00]} 8. dxc5 {[%clk 0:02:56]}  Bxc5 {[%clk 0:03:01]} 9. Nb3 {[%clk 0:02:57]}  Bb6 {[%clk 0:03:00]} 10. Re1+ {[%clk 0:02:54]}  Be6 {[%clk 0:02:59]} 11. Nbd4 {[%clk 0:02:50]}  O-O {[%clk 0:02:59]} 12. Nxe6 {[%clk 0:02:50]}  fxe6 {[%clk 0:02:58]} 13. Rxe6 {[%clk 0:02:50]}  Bxf2+ {[%clk 0:02:52]} 14. Kxf2 {[%clk 0:02:40]}  Ne4+ {[%clk 0:02:45]} 15. Kf1 {[%clk 0:02:23]}  Qb6 {[%clk 0:02:32]} 16. Qe2 {[%clk 0:02:20]}  Rae8 {[%clk 0:01:53]} 17. Rxe8 {[%clk 0:02:16]}  Rxe8 {[%clk 0:01:54]} 18. Be3 {[%clk 0:02:16]}  Ng3+ {[%clk 0:01:51]} 19. hxg3 {[%clk 0:02:13]}  Rxe3 {[%clk 0:01:51]} 20. Qf2 {[%clk 0:01:59]}  Qxb5+ {[%clk 0:01:51]} 21. Kg1 {[%clk 0:01:59]}  Re2 {[%clk 0:01:19]} 22. Qf1 {[%clk 0:01:58]}  Qc5+ {[%clk 0:01:15]} 23. Kh2 {[%clk 0:01:54]}  Qxc2 {[%clk 0:01:14]} 24. Re1 {[%clk 0:01:54]}  Rxe1 {[%clk 0:01:12]} 25. Qxe1 {[%clk 0:01:54]}  Qe4 {[%clk 0:01:11]} 26. Qc3 {[%clk 0:01:38]}  h6 {[%clk 0:01:11]} 27. Qc5 {[%clk 0:01:31]}  d4 {[%clk 0:01:07]} 28. Qc4+ {[%clk 0:01:31]}  Kh7 {[%clk 0:01:05]} 29. b4 {[%clk 0:01:29]}  Qf5 {[%clk 0:00:51]} 30. b5 {[%clk 0:01:21]}  Ne5 {[%clk 0:00:46]} 31. Qxd4 {[%clk 0:00:57]}  Nxf3+ {[%clk 0:00:44]} 32. gxf3 {[%clk 0:00:58]}  Qxf3 {[%clk 0:00:45]} 33. Qxa7 {[%clk 0:00:54]}  Qe2+ {[%clk 0:00:45]} 34. Kh3 {[%clk 0:00:55]}  Qxb5 {[%clk 0:00:45]} 35. a4 {[%clk 0:00:55]}  Qc6 {[%clk 0:00:42]} 36. Qd4 {[%clk 0:00:52]}  h5 {[%clk 0:00:33]} 37. Qd3+ {[%clk 0:00:52]}  g6 {[%clk 0:00:32]} 38. Qd1 {[%clk 0:00:33]}  Kh6 {[%clk 0:00:22]} 39. Qd2+ {[%clk 0:00:29]}  g5 {[%clk 0:00:22]} 40. Qd1 {[%clk 0:00:29]}  Qe4 {[%clk 0:00:15]} 41. Qd6+ {[%clk 0:00:28]}  Kg7 {[%clk 0:00:15]} 42. Qc7+ {[%clk 0:00:26]}  Kf6 {[%clk 0:00:13]} 43. Qd6+ {[%clk 0:00:25]}  Qe6+ {[%clk 0:00:13]} 0-1


[Site "https://www.chess.com"]

[Event "Titled Tuesday Blitz June 6 Early 2023"]
[White "Gabdushev, Ruslan"]
[Black "Hua, Lefong"]
[WhiteFideId "4137833"]
[BlackFideId "2602253"]
[WhiteElo "2233"]
[BlackElo "2639"]
[Result "1-0"]
[Round "9"]
[TimeControl "180+2"]
[Date "2023.06.06"]
[WhiteClock "0:00:05"]
[BlackClock "0:00:01"]
[Board "48"]

1. b3 {[%clk 0:03:00]}  Nf6 {[%clk 0:02:59]} 2. Bb2 {[%clk 0:02:59]}  g6 {[%clk 0:03:00]} 3. Bxf6 {[%clk 0:02:59]}  exf6 {[%clk 0:03:01]} 4. e3 {[%clk 0:02:59]}  Bg7 {[%clk 0:02:59]} 5. g3 {[%clk 0:02:59]}  O-O {[%clk 0:02:59]} 6. Bg2 {[%clk 0:02:59]}  f5 {[%clk 0:02:59]} 7. d4 {[%clk 0:02:58]}  d6 {[%clk 0:02:58]} 8. Ne2 {[%clk 0:02:58]}  c6 {[%clk 0:02:59]} 9. c4 {[%clk 0:02:55]}  Nd7 {[%clk 0:02:59]} 10. Nbc3 {[%clk 0:02:54]}  Nf6 {[%clk 0:03:00]} 11. b4 {[%clk 0:02:50]}  a6 {[%clk 0:02:58]} 12. a4 {[%clk 0:02:49]}  h5 {[%clk 0:02:57]} 13. h4 {[%clk 0:02:48]}  Ng4 {[%clk 0:02:54]} 14. Nf4 {[%clk 0:02:43]}  Bd7 {[%clk 0:02:40]} 15. c5 {[%clk 0:02:33]}  d5 {[%clk 0:02:39]} 16. Bf3 {[%clk 0:02:28]}  Bf6 {[%clk 0:02:27]} 17. Rb1 {[%clk 0:02:20]}  Re8 {[%clk 0:02:27]} 18. Qd3 {[%clk 0:02:16]}  Qe7 {[%clk 0:02:13]} 19. O-O {[%clk 0:02:09]}  Bxh4 {[%clk 0:01:52]} 20. gxh4 {[%clk 0:01:55]}  Qxh4 {[%clk 0:01:51]} 21. Bxg4 {[%clk 0:01:54]}  fxg4 {[%clk 0:01:31]} 22. Ng2 {[%clk 0:01:44]}  Qg5 {[%clk 0:01:16]} 23. f4 {[%clk 0:01:35]}  Qf6 {[%clk 0:01:02]} 24. e4 {[%clk 0:01:15]}  dxe4 {[%clk 0:00:51]} 25. Nxe4 {[%clk 0:01:14]}  Qe7 {[%clk 0:00:51]} 26. Nd6 {[%clk 0:01:09]}  Rf8 {[%clk 0:00:41]} 27. f5 {[%clk 0:01:06]}  Qg5 {[%clk 0:00:37]} 28. Qe3 {[%clk 0:00:56]}  Qxe3+ {[%clk 0:00:28]} 29. Nxe3 {[%clk 0:00:56]}  g5 {[%clk 0:00:23]} 30. Kf2 {[%clk 0:00:36]}  Kg7 {[%clk 0:00:17]} 31. Rh1 {[%clk 0:00:34]}  Rh8 {[%clk 0:00:17]} 32. Rh2 {[%clk 0:00:31]}  Rh6 {[%clk 0:00:10]} 33. Rbh1 {[%clk 0:00:28]}  Rah8 {[%clk 0:00:10]} 34. Nxb7 {[%clk 0:00:22]}  Rf6 {[%clk 0:00:11]} 35. Nd6 {[%clk 0:00:21]}  Rfh6 {[%clk 0:00:06]} 36. Kg3 {[%clk 0:00:19]}  f6 {[%clk 0:00:02]} 37. Nxg4 {[%clk 0:00:14]}  hxg4 {[%clk 0:00:01]} 38. Rxh6 {[%clk 0:00:14]}  Rxh6 {[%clk 0:00:01]} 39. Rxh6 {[%clk 0:00:15]}  Kxh6 {[%clk 0:00:02]} 40. Kxg4 {[%clk 0:00:11]}  Kg7 {[%clk 0:00:02]} 41. d5 {[%clk 0:00:06]}  cxd5 {[%clk 0:00:02]} 42. b5 {[%clk 0:00:06]}  axb5 {[%clk 0:00:01]} 43. axb5 {[%clk 0:00:05]} 1-0


[Site "https://www.chess.com"]

[Event "Titled Tuesday Blitz June 6 Early 2023"]
[White "Agibileg, Uurtsaikh"]
[Black "Yeritsyan, Hayk"]
[WhiteFideId "4901606"]
[BlackFideId "13307320"]
[WhiteElo "2353"]
[BlackElo "2461"]
[Result "1-0"]
[Round "9"]
[TimeControl "180+2"]
[Date "2023.06.06"]
[WhiteClock "0:01:23"]
[BlackClock "0:00:08"]
[Board "49"]

1. d4 {[%clk 0:03:00]}  Nf6 {[%clk 0:02:59]} 2. c4 {[%clk 0:03:00]}  e6 {[%clk 0:02:59]} 3. Nc3 {[%clk 0:03:00]}  d5 {[%clk 0:02:56]} 4. cxd5 {[%clk 0:02:59]}  exd5 {[%clk 0:02:56]} 5. Bg5 {[%clk 0:02:59]}  Be7 {[%clk 0:02:56]} 6. e3 {[%clk 0:03:00]}  c6 {[%clk 0:02:56]} 7. Bd3 {[%clk 0:02:59]}  O-O {[%clk 0:02:55]} 8. Nge2 {[%clk 0:02:59]}  Nbd7 {[%clk 0:02:56]} 9. O-O {[%clk 0:02:59]}  Re8 {[%clk 0:02:56]} 10. f3 {[%clk 0:02:58]}  Nf8 {[%clk 0:02:55]} 11. Kh1 {[%clk 0:02:55]}  h6 {[%clk 0:02:44]} 12. Bh4 {[%clk 0:02:53]}  Nh5 {[%clk 0:02:36]} 13. Bf2 {[%clk 0:02:52]}  Bg5 {[%clk 0:02:24]} 14. e4 {[%clk 0:02:51]}  Nf4 {[%clk 0:02:21]} 15. Nxf4 {[%clk 0:02:51]}  Bxf4 {[%clk 0:02:21]} 16. e5 {[%clk 0:02:52]}  Bg5 {[%clk 0:02:13]} 17. g3 {[%clk 0:02:49]}  Bh3 {[%clk 0:02:12]} 18. Re1 {[%clk 0:02:49]}  Qd7 {[%clk 0:02:08]} 19. f4 {[%clk 0:02:42]}  Bd8 {[%clk 0:02:03]} 20. Re3 {[%clk 0:02:29]}  Bb6 {[%clk 0:01:58]} 21. Be2 {[%clk 0:02:22]}  Ne6 {[%clk 0:01:50]} 22. Rd3 {[%clk 0:02:14]}  Bf5 {[%clk 0:01:48]} 23. Rd2 {[%clk 0:02:14]}  Rad8 {[%clk 0:01:36]} 24. Bf3 {[%clk 0:02:07]}  Ba5 {[%clk 0:01:26]} 25. g4 {[%clk 0:02:04]}  Bxc3 {[%clk 0:01:25]} 26. bxc3 {[%clk 0:02:04]}  Be4 {[%clk 0:01:25]} 27. Bxe4 {[%clk 0:02:02]}  dxe4 {[%clk 0:01:26]} 28. f5 {[%clk 0:02:03]}  Ng5 {[%clk 0:01:26]} 29. Be3 {[%clk 0:01:59]}  Nf3 {[%clk 0:01:26]} 30. Rg2 {[%clk 0:01:59]}  Rxe5 {[%clk 0:01:19]} 31. Qc1 {[%clk 0:01:47]}  Ree8 {[%clk 0:01:13]} 32. Bxh6 {[%clk 0:01:39]}  gxh6 {[%clk 0:01:10]} 33. Qxh6 {[%clk 0:01:40]}  Qd6 {[%clk 0:00:58]} 34. f6 {[%clk 0:01:38]}  Qf8 {[%clk 0:00:58]} 35. Qh5 {[%clk 0:01:36]}  Rd5 {[%clk 0:00:51]} 36. g5 {[%clk 0:01:35]}  Re6 {[%clk 0:00:52]} 37. Rg3 {[%clk 0:01:26]}  Qd6 {[%clk 0:00:08]} 38. Rh3 {[%clk 0:01:26]}  Qxh2+ {[%clk 0:00:07]} 39. Rxh2 {[%clk 0:01:26]}  Nxh2 {[%clk 0:00:08]} 40. Qh6 {[%clk 0:01:23]} 1-0


[Site "https://www.chess.com"]

[Event "Titled Tuesday Blitz June 6 Early 2023"]
[White "Yonal, Timur"]
[Black "Gubajdullin, Alexei"]
[WhiteFideId "44115725"]
[BlackFideId "4141202"]
[WhiteElo "1966"]
[BlackElo "2279"]
[Result "0-1"]
[Round "9"]
[TimeControl "180+2"]
[Date "2023.06.06"]
[WhiteClock "0:00:01"]
[BlackClock "0:00:43"]
[Board "50"]

1. e4 {[%clk 0:03:00]}  g6 {[%clk 0:02:59]} 2. d4 {[%clk 0:03:00]}  Bg7 {[%clk 0:02:59]} 3. Nc3 {[%clk 0:02:53]}  d6 {[%clk 0:02:57]} 4. Nf3 {[%clk 0:02:53]}  Nf6 {[%clk 0:02:55]} 5. g3 {[%clk 0:02:49]}  O-O {[%clk 0:02:55]} 6. Bg2 {[%clk 0:02:48]}  a6 {[%clk 0:02:55]} 7. O-O {[%clk 0:02:48]}  Nbd7 {[%clk 0:02:54]} 8. Re1 {[%clk 0:02:43]}  e5 {[%clk 0:02:52]} 9. dxe5 {[%clk 0:02:33]}  Nxe5 {[%clk 0:02:51]} 10. Nxe5 {[%clk 0:02:28]}  dxe5 {[%clk 0:02:51]} 11. Bg5 {[%clk 0:02:27]}  Qd4 {[%clk 0:02:36]} 12. Bxf6 {[%clk 0:02:13]}  Bxf6 {[%clk 0:02:35]} 13. Nd5 {[%clk 0:02:12]}  Bd8 {[%clk 0:02:34]} 14. c3 {[%clk 0:02:08]}  Qxd1 {[%clk 0:02:31]} 15. Raxd1 {[%clk 0:02:09]}  c6 {[%clk 0:02:30]} 16. Ne3 {[%clk 0:02:06]}  Be6 {[%clk 0:02:30]} 17. b3 {[%clk 0:02:00]}  Bc7 {[%clk 0:02:23]} 18. Rd2 {[%clk 0:01:32]}  Rfd8 {[%clk 0:02:20]} 19. Red1 {[%clk 0:01:32]}  Rxd2 {[%clk 0:02:19]} 20. Rxd2 {[%clk 0:01:33]}  a5 {[%clk 0:02:17]} 21. c4 {[%clk 0:01:26]}  a4 {[%clk 0:02:14]} 22. b4 {[%clk 0:01:24]}  a3 {[%clk 0:02:11]} 23. Bf1 {[%clk 0:01:19]}  Rd8 {[%clk 0:02:08]} 24. Rxd8+ {[%clk 0:01:15]}  Bxd8 {[%clk 0:02:08]} 25. Kg2 {[%clk 0:01:14]}  b5 {[%clk 0:01:47]} 26. cxb5 {[%clk 0:01:09]}  cxb5 {[%clk 0:01:45]} 27. Nd5 {[%clk 0:00:49]}  Bd7 {[%clk 0:01:33]} 28. Kf3 {[%clk 0:00:40]}  f5 {[%clk 0:01:32]} 29. Ke3 {[%clk 0:00:37]}  Bc6 {[%clk 0:01:31]} 30. f3 {[%clk 0:00:35]}  Kf7 {[%clk 0:01:29]} 31. Kd3 {[%clk 0:00:29]}  g5 {[%clk 0:01:25]} 32. Ne3 {[%clk 0:00:18]}  fxe4+ {[%clk 0:01:15]} 33. fxe4 {[%clk 0:00:19]}  g4 {[%clk 0:01:15]} 34. Nxg4 {[%clk 0:00:18]}  Ke6 {[%clk 0:01:14]} 35. Ne3 {[%clk 0:00:17]}  Be7 {[%clk 0:01:14]} 36. Bh3+ {[%clk 0:00:17]}  Kf7 {[%clk 0:01:12]} 37. Nc2 {[%clk 0:00:17]}  h5 {[%clk 0:01:03]} 38. Bf5 {[%clk 0:00:17]}  Kf6 {[%clk 0:01:01]} 39. Kc3 {[%clk 0:00:17]}  Kg5 {[%clk 0:01:01]} 40. Kb3 {[%clk 0:00:17]}  Bd8 {[%clk 0:00:58]} 41. Kxa3 {[%clk 0:00:17]}  Bb6 {[%clk 0:00:58]} 42. Ne1 {[%clk 0:00:12]}  Kf6 {[%clk 0:00:56]} 43. Kb3 {[%clk 0:00:10]}  Be8 {[%clk 0:00:53]} 44. Nf3 {[%clk 0:00:10]}  Bf7+ {[%clk 0:00:53]} 45. Kb2 {[%clk 0:00:10]}  Be3 {[%clk 0:00:52]} 46. a3 {[%clk 0:00:10]}  Bc4 {[%clk 0:00:50]} 47. Kc2 {[%clk 0:00:08]}  Be2 {[%clk 0:00:50]} 48. Nd2 {[%clk 0:00:04]}  Bg1 {[%clk 0:00:49]} 49. h3 {[%clk 0:00:04]}  Bf2 {[%clk 0:00:47]} 50. g4 {[%clk 0:00:05]}  h4 {[%clk 0:00:47]} 51. Kc3 {[%clk 0:00:02]}  Kg5 {[%clk 0:00:46]} 52. Kc2 {[%clk 0:00:01]}  Kf4 {[%clk 0:00:46]} 53. Bd7 {[%clk 0:00:02]}  Be3 {[%clk 0:00:43]} 54. Bc6 {[%clk 0:00:01]}  Kg3 {[%clk 0:00:43]} 0-1


[Site "https://www.chess.com"]

[Event "Titled Tuesday Blitz June 6 Early 2023"]
[White "Atakhan, Abtin"]
[Black "Arat, Ufuk Sezen"]
[WhiteFideId "22502203"]
[BlackFideId "6309089"]
[WhiteElo "2008"]
[BlackElo "2289"]
[Result "1-0"]
[Round "9"]
[TimeControl "180+2"]
[Date "2023.06.06"]
[WhiteClock "0:00:03"]
[BlackClock "0:00:04"]
[Board "52"]

1. c4 {[%clk 0:03:00]}  e5 {[%clk 0:02:58]} 2. Nc3 {[%clk 0:03:00]}  Nf6 {[%clk 0:02:58]} 3. Nf3 {[%clk 0:03:01]}  Nc6 {[%clk 0:02:58]} 4. e3 {[%clk 0:03:00]}  d5 {[%clk 0:02:58]} 5. cxd5 {[%clk 0:02:59]}  Nxd5 {[%clk 0:02:59]} 6. Bb5 {[%clk 0:03:00]}  Nxc3 {[%clk 0:02:59]} 7. bxc3 {[%clk 0:03:01]}  Bd6 {[%clk 0:03:00]} 8. e4 {[%clk 0:02:58]}  Bg4 {[%clk 0:02:58]} 9. h3 {[%clk 0:02:57]}  Bh5 {[%clk 0:02:57]} 10. g4 {[%clk 0:02:27]}  Bg6 {[%clk 0:02:55]} 11. d3 {[%clk 0:02:25]}  a6 {[%clk 0:02:49]} 12. Bxc6+ {[%clk 0:02:24]}  bxc6 {[%clk 0:02:50]} 13. Qa4 {[%clk 0:02:09]}  O-O {[%clk 0:02:42]} 14. Qxc6 {[%clk 0:02:06]}  Qf6 {[%clk 0:02:42]} 15. Ke2 {[%clk 0:01:58]}  h5 {[%clk 0:02:33]} 16. Rg1 {[%clk 0:01:49]}  Rab8 {[%clk 0:02:19]} 17. Be3 {[%clk 0:01:49]}  Rb2+ {[%clk 0:02:18]} 18. Nd2 {[%clk 0:01:50]}  hxg4 {[%clk 0:02:17]} 19. hxg4 {[%clk 0:01:50]}  Qe6 {[%clk 0:02:05]} 20. Qxa6 {[%clk 0:01:43]}  Rfb8 {[%clk 0:01:53]} 21. f3 {[%clk 0:01:41]}  Qe8 {[%clk 0:01:41]} 22. Rab1 {[%clk 0:01:27]}  Ra8 {[%clk 0:01:35]} 23. Qc4 {[%clk 0:01:16]}  Raxa2 {[%clk 0:01:33]} 24. Rxb2 {[%clk 0:01:13]}  Rxb2 {[%clk 0:01:34]} 25. Ra1 {[%clk 0:01:13]}  Qd8 {[%clk 0:01:25]} 26. Ra2 {[%clk 0:01:02]}  Rxa2 {[%clk 0:01:23]} 27. Qxa2 {[%clk 0:01:03]}  Qh4 {[%clk 0:01:23]} 28. Nf1 {[%clk 0:00:59]}  Qh1 {[%clk 0:01:19]} 29. Bf2 {[%clk 0:00:58]}  Qg2 {[%clk 0:01:16]} 30. Qb1 {[%clk 0:00:51]}  Bc5 {[%clk 0:00:58]} 31. Ne3 {[%clk 0:00:51]}  Bxe3 {[%clk 0:00:43]} 32. Kxe3 {[%clk 0:00:52]}  Kh7 {[%clk 0:00:41]} 33. Ke2 {[%clk 0:00:45]}  f6 {[%clk 0:00:34]} 34. Qb7 {[%clk 0:00:32]}  Qh1 {[%clk 0:00:29]} 35. Qxc7 {[%clk 0:00:32]}  Qc1 {[%clk 0:00:29]} 36. Be3 {[%clk 0:00:31]}  Qc2+ {[%clk 0:00:24]} 37. Bd2 {[%clk 0:00:31]}  Be8 {[%clk 0:00:24]} 38. Qb6 {[%clk 0:00:20]}  Ba4 {[%clk 0:00:22]} 39. Qg1 {[%clk 0:00:18]}  Kg8 {[%clk 0:00:12]} 40. g5 {[%clk 0:00:13]}  fxg5 {[%clk 0:00:08]} 41. Qxg5 {[%clk 0:00:12]}  Qd1+ {[%clk 0:00:08]} 42. Kf2 {[%clk 0:00:12]}  Bb5 {[%clk 0:00:07]} 43. c4 {[%clk 0:00:10]}  Ba4 {[%clk 0:00:07]} 44. Be3 {[%clk 0:00:07]}  Qc2+ {[%clk 0:00:06]} 45. Kg3 {[%clk 0:00:06]}  Qxd3 {[%clk 0:00:07]} 46. c5 {[%clk 0:00:06]}  Qf1 {[%clk 0:00:06]} 47. Qxe5 {[%clk 0:00:05]}  Bd1 {[%clk 0:00:06]} 48. Qe8+ {[%clk 0:00:05]}  Kh7 {[%clk 0:00:06]} 49. Qh5+ {[%clk 0:00:05]}  Kg8 {[%clk 0:00:07]} 50. Bf2 {[%clk 0:00:06]}  Qc4 {[%clk 0:00:05]} 51. Qd5+ {[%clk 0:00:05]}  Qxd5 {[%clk 0:00:05]} 52. exd5 {[%clk 0:00:06]}  Bb3 {[%clk 0:00:05]} 53. d6 {[%clk 0:00:03]}  Ba4 {[%clk 0:00:05]} 54. Kf4 {[%clk 0:00:03]}  Bc6 {[%clk 0:00:06]} 55. Ke5 {[%clk 0:00:03]}  Kf7 {[%clk 0:00:06]} 56. Bh4 {[%clk 0:00:03]}  Ke8 {[%clk 0:00:05]} 57. Ke6 {[%clk 0:00:02]}  Ba4 {[%clk 0:00:04]} 58. Kd5 {[%clk 0:00:02]}  Kd7 {[%clk 0:00:04]} 59. f4 {[%clk 0:00:02]}  Bc6+ {[%clk 0:00:05]} 60. Ke5 {[%clk 0:00:03]}  Ba4 {[%clk 0:00:05]} 61. Kf5 {[%clk 0:00:02]}  Bc2+ {[%clk 0:00:05]} 62. Ke5 {[%clk 0:00:02]}  Ba4 {[%clk 0:00:05]} 63. Bg5 {[%clk 0:00:02]}  Bc2 {[%clk 0:00:06]} 64. f5 {[%clk 0:00:03]}  Bb3 {[%clk 0:00:06]} 65. Be7 {[%clk 0:00:03]}  Bc2 {[%clk 0:00:06]} 66. Bf8 {[%clk 0:00:03]}  g6 {[%clk 0:00:06]} 67. f6 {[%clk 0:00:03]}  Bb3 {[%clk 0:00:06]} 68. Be7 {[%clk 0:00:03]}  g5 {[%clk 0:00:07]} 69. Kf5 {[%clk 0:00:02]}  Bf7 {[%clk 0:00:05]} 70. Kxg5 {[%clk 0:00:03]}  Kc6 {[%clk 0:00:05]} 71. Kh6 {[%clk 0:00:03]}  Kd7 {[%clk 0:00:06]} 72. Kg7 {[%clk 0:00:04]}  Ke8 {[%clk 0:00:04]} 73. d7+ {[%clk 0:00:03]} 1-0


[Site "https://www.chess.com"]